fUST/lending_fUST_20250718
["ID","MTS","AMOUNT","RATE_DAILY","PERIOD"]
[372885024,1752792653221,-460.0,0.00018935,2]
[372885025,1752792653231,-1285.9,0.00018935,2]
[372885026,1752792653240,-3844.7,0.00018935,2]
[372885027,1752792653250,-196.23,0.00018937,2]
[372885028,1752792653259,-460.0,0.00018938,2]
[372885029,1752792653269,-460.0,0.00018938,2]
[372885030,1752792653280,-2390.87,0.00018938,2]
[372885031,1752792653290,-883.0,0.00018938,2]
[372885032,1752792653300,-460.0,0.00018938,2]
[372885033,1752792653309,-2574.35,0.00018938,2]
[372885034,1752792653319,-460.0,0.00018938,2]
[372885035,1752792653328,-460.0,0.00018938,2]
[372885036,1752792653338,-1471.77,0.00018938,2]
[372885037,1752792653347,-460.0,0.0001896,2]
[372885038,1752792653357,-460.0,0.00018961,2]
[372885039,1752792653366,-460.0,0.00018961,2]
[372885040,1752792653375,-460.0,0.00018961,2]
[372885041,1752792653384,-460.0,0.00018961,2]
[372885042,1752792653394,-558.89,0.00018961,2]
[372885043,1752792653404,-460.0,0.00018961,2]
[372885044,1752792653415,-509.26,0.00018961,2]
[372885045,1752792653424,-504.22,0.00018961,2]
[372885046,1752792653434,-553.36,0.00018961,2]
[372885047,1752792653443,-460.0,0.00018961,2]
[372885048,1752792653453,-683.62,0.00018961,2]
[372885049,1752792653465,-460.0,0.00018961,2]
[372885050,1752792653477,-651.31,0.00018961,2]
[372885051,1752792653487,-623.43,0.00018961,2]
[372885052,1752792653496,-1119.9,0.00018961,2]
[372885053,1752792653507,-620.89,0.00018961,2]
[372885054,1752792653516,-460.0,0.00018961,2]
[372885055,1752792653528,-790.48,0.00018961,2]
[372885056,1752792653537,-709.94,0.00018961,2]
[372885057,1752792653546,-460.0,0.00018961,2]
[372885058,1752792653556,-604.38,0.00018961,2]
[372885059,1752792653566,-460.0,0.00018964,2]
[372885060,1752792653575,-460.0,0.00018964,2]
[372885061,1752792653585,-491.24,0.00018964,2]
[372885062,1752792653595,-614.19,0.00018964,2]
[372885063,1752792653604,-4940.94,0.00018964,2]
[372885064,1752792653614,-557.14,0.00018964,2]
[372885065,1752792653623,-853.37,0.00018964,2]
[372885066,1752792653633,-460.0,0.00018964,2]
[372885067,1752792653643,-460.0,0.00018964,2]
[372885068,1752792653652,-296.40139784,0.00018964,2]
[372885069,1752792653662,-546.72,0.00018964,2]
[372885070,1752792653671,-2500.0,0.00018964,2]
[372885071,1752792653681,-1424.49392517,0.00018964,2]
[372885072,1752792653691,-460.0,0.00018965,2]
[372885073,1752792653700,-460.0,0.00018965,2]
[372885074,1752792653709,-460.0,0.00018965,2]
[372885075,1752792653719,-460.0,0.00018965,2]
[372885076,1752792653728,-460.0,0.00018965,2]
[372885077,1752792653738,-467.83,0.00018965,2]
[372885078,1752792653747,-460.0,0.00018965,2]
[372885079,1752792653757,-460.0,0.00018965,2]
[372885080,1752792653766,-460.0,0.00018965,2]
[372885081,1752792653777,-460.0,0.00018965,2]
[372885082,1752792653787,-577.94,0.00018965,2]
[372885083,1752792653796,-460.0,0.00018965,2]
[372885084,1752792653806,-460.0,0.00018965,2]
[372885085,1752792653815,-460.0,0.00018965,2]
[372885086,1752792653825,-373.07571524,0.00018965,2]
[372885087,1752792653835,-586.01,0.00018965,2]
[372885088,1752792653844,-460.0,0.00018965,2]
[372885089,1752792653854,-460.0,0.00018965,2]
[372885090,1752792653863,-1023.54,0.00018965,2]
[372885091,1752792653873,-460.0,0.00018965,2]
[372885092,1752792653882,-460.0,0.00018965,2]
[372885093,1752792653892,-460.0,0.00018965,2]
[372885094,1752792653901,-460.0,0.00018965,2]
[372885095,1752792653911,-460.0,0.00018965,2]
[372885096,1752792653921,-500.0,0.00018993,2]
[372885097,1752792653931,-2066.47584786,0.00019,2]
[372885098,1752792653940,-160.0,0.00019,2]
[372885099,1752792653950,-445.44958599,0.00019004,2]
[372885100,1752792653959,-506.17214317,0.00019016,2]
[372885101,1752792653969,-570.4268414,0.00019016,2]
[372885102,1752792653978,-454.2426211,0.00019089,2]
[372885103,1752792653988,-1000.0,0.00019139,2]
[372885104,1752792653997,-178.577719,0.00019178,2]
[372885105,1752792654007,-460.0,0.00019209,2]
[372885106,1752792654016,-460.0,0.00019209,2]
[372885107,1752792654028,-1285.9,0.00019209,2]
[372885108,1752792654038,-3844.7,0.00019209,2]
[372885109,1752792654047,-460.0,0.00019212,2]
[372885110,1752792654057,-460.0,0.00019212,2]
[372885111,1752792654066,-2390.87,0.00019212,2]
[372885112,1752792654076,-883.0,0.00019212,2]
[372885113,1752792654086,-460.0,0.00019212,2]
[372885114,1752792654096,-2574.35,0.00019212,2]
[372885115,1752792654106,-460.0,0.00019212,2]
[372885116,1752792654115,-460.0,0.00019212,2]
[372885117,1752792654125,-1471.77,0.00019212,2]
[372885118,1752792654134,-2836.55255679,0.00019212,2]
[372885119,1752792654143,-460.0,0.00019234,2]
[372885120,1752792654153,-460.0,0.00019235,2]
[372885121,1752792654164,-460.0,0.00019235,2]
[372885122,1752792654174,-460.0,0.00019235,2]
[372885123,1752792654184,-460.0,0.00019235,2]
[372885124,1752792654195,-558.89,0.00019235,2]
[372885125,1752792654204,-460.0,0.00019235,2]
[372885126,1752792654214,-509.26,0.00019235,2]
[372885127,1752792654223,-504.22,0.00019235,2]
[372885128,1752792654232,-553.36,0.00019235,2]
[372885129,1752792654242,-460.0,0.00019235,2]
[372885130,1752792654251,-683.62,0.00019235,2]
[372885131,1752792654261,-651.31,0.00019235,2]
[372885132,1752792654271,-623.43,0.00019235,2]
[372885133,1752792654281,-1119.9,0.00019235,2]
[372885134,1752792654292,-620.89,0.00019235,2]
[372885135,1752792654302,-460.0,0.00019235,2]
[372885136,1752792654311,-790.48,0.00019235,2]
[372885137,1752792654321,-709.94,0.00019235,2]
[372885138,1752792654331,-460.0,0.00019235,2]
[372885139,1752792654341,-604.38,0.00019235,2]
[372885140,1752792654351,-151.0,0.00019238,2]
[372885141,1752792654360,-151.0,0.00019238,2]
[372885142,1752792654369,-151.0,0.00019238,2]
[372885143,1752792654378,-460.0,0.00019238,2]
[372885144,1752792654388,-460.0,0.00019238,2]
[372885145,1752792654397,-491.24,0.00019238,2]
[372885146,1752792654406,-614.19,0.00019238,2]
[372885147,1752792654416,-4940.94,0.00019238,2]
[372885148,1752792654426,-557.14,0.00019238,2]
[372885149,1752792654435,-853.37,0.00019238,2]
[372885150,1752792654445,-460.0,0.00019238,2]
[372885151,1752792654454,-460.0,0.00019238,2]
[372885152,1752792654465,-546.72,0.00019238,2]
[372885153,1752792654477,-460.0,0.00019239,2]
[372885154,1752792654486,-545.28396154,0.00019239,2]
[372885155,1752792654495,-460.0,0.00019239,2]
[372885156,1752792654506,-459.58817053,0.00019239,2]
[372885157,1752792654515,-467.83,0.00019239,2]
[372885158,1752792654525,-460.0,0.00019239,2]
[372885159,1752792654535,-460.0,0.00019239,2]
[372885160,1752792654545,-460.0,0.00019239,2]
[372885161,1752792654555,-577.94,0.00019239,2]
[372885162,1752792654564,-460.0,0.00019239,2]
[372885163,1752792654573,-460.0,0.00019239,2]
[372885164,1752792654583,-460.0,0.00019239,2]
[372885165,1752792654593,-151.0,0.00019239,2]
[372885166,1752792654602,-151.0,0.00019239,2]
[372885167,1752792654612,-460.0,0.00019239,2]
[372885168,1752792654622,-314.24537845,0.00019239,2]
[372885169,1752792654631,-1023.54,0.00019239,2]
[372885170,1752792654641,-460.0,0.00019239,2]
[372885171,1752792654650,-460.0,0.00019239,2]
[372885172,1752792654660,-151.0,0.00019239,2]
[372885173,1752792654669,-285.7777226,0.00019239,2]
[372885174,1752792654679,-460.0,0.00019239,2]
[372885175,1752792654688,-460.0,0.00019239,2]
[372885176,1752792654698,-151.0,0.00019239,2]
[372885177,1752792654707,-151.0,0.00019239,2]
[372885178,1752792654716,-179.89206476,0.00019343,2]
[372885179,1752792654726,-500.0,0.00019438,2]
[372885180,1752792654736,-460.0,0.00019483,2]
[372885181,1752792654746,-460.0,0.00019483,2]
[372885182,1752792654756,-1285.9,0.00019483,2]
[372885183,1752792654766,-3844.7,0.00019483,2]
[372885184,1752792654776,-460.0,0.00019486,2]
[372885185,1752792654786,-460.0,0.00019486,2]
[372885186,1752792654795,-2390.87,0.00019486,2]
[372885187,1752792654805,-883.0,0.00019486,2]
[372885188,1752792654814,-460.0,0.00019486,2]
[372885189,1752792654823,-2574.35,0.00019486,2]
[372885190,1752792654833,-460.0,0.00019486,2]
[372885191,1752792654842,-460.0,0.00019486,2]
[372885192,1752792654852,-1471.77,0.00019486,2]
[372885193,1752792654861,-190.07743784,0.00019508,2]
[372885194,1752792654871,-460.0,0.00019509,2]
[372885195,1752792654881,-460.0,0.00019509,2]
[372885196,1752792654969,-460.0,0.00019509,2]
[372885197,1752792654980,-460.0,0.00019509,2]
[372885198,1752792654989,-558.89,0.00019509,2]
[372885199,1752792654999,-460.0,0.00019509,2]
[372885200,1752792655008,-509.26,0.00019509,2]
[372885201,1752792655017,-504.22,0.00019509,2]
[372885202,1752792655029,-553.36,0.00019509,2]
[372885203,1752792655038,-460.0,0.00019509,2]
[372885204,1752792655048,-683.62,0.00019509,2]
[372885205,1752792655057,-651.31,0.00019509,2]
[372885206,1752792655067,-623.43,0.00019509,2]
[372885207,1752792655076,-1119.9,0.00019509,2]
[372885208,1752792655086,-620.89,0.00019509,2]
[372885209,1752792655095,-460.0,0.00019509,2]
[372885210,1752792655105,-790.48,0.00019509,2]
[372885211,1752792655115,-709.94,0.00019509,2]
[372885212,1752792655125,-530.52,0.00019509,2]
[372885213,1752792655134,-604.38,0.00019509,2]
[372885214,1752792655143,-460.0,0.00019512,2]
[372885215,1752792655152,-460.0,0.00019512,2]
[372885216,1752792655162,-491.24,0.00019512,2]
[372885217,1752792655172,-614.19,0.00019512,2]
[372885218,1752792655184,-4940.94,0.00019512,2]
[372885219,1752792655193,-853.37,0.00019512,2]
[372885220,1752792655202,-557.14,0.00019512,2]
[372885221,1752792655212,-460.0,0.00019512,2]
[372885222,1752792655222,-460.0,0.00019512,2]
[372885223,1752792655231,-546.72,0.00019512,2]
[372885224,1752792655241,-500.0,0.00019512,2]
[372885225,1752792655250,-460.0,0.00019513,2]
[372885226,1752792655260,-460.0,0.00019513,2]
[372885227,1752792655270,-467.83,0.00019513,2]
[372885228,1752792655282,-460.0,0.00019513,2]
[372885229,1752792655291,-460.0,0.00019513,2]
[372885230,1752792655301,-460.0,0.00019513,2]
[372885231,1752792655311,-577.94,0.00019513,2]
[372885232,1752792655320,-460.0,0.00019513,2]
[372885233,1752792655330,-460.0,0.00019513,2]
[372885234,1752792655340,-460.0,0.00019513,2]
[372885235,1752792655349,-1023.54,0.00019513,2]
[372885236,1752792655358,-386.14255745,0.00019513,2]
[372885237,1752792655368,-460.0,0.00019513,2]
[372885238,1752792655378,-460.0,0.00019513,2]
[372885239,1752792655389,-460.0,0.00019513,2]
[372885240,1752792655398,-151.0,0.00019515,2]
[372885241,1752792655407,-500.0,0.0001952,2]
[372885242,1752792655417,-260.0,0.00019548,2]
[372885243,1752792655427,-587.0,0.00019669,2]
[372885244,1752792655437,-2000.0,0.00019686,2]
[372885245,1752792655446,-2000.0,0.00019726,2]
[372885246,1752792655457,-460.0,0.00019756,2]
[372885247,1752792655476,-460.0,0.00019756,2]
[372885248,1752792655488,-1285.9,0.00019756,2]
[372885249,1752792655499,-3844.7,0.00019756,2]
[372885250,1752792655508,-460.0,0.00019759,2]
[372885251,1752792655518,-460.0,0.00019759,2]
[372885252,1752792655532,-2390.87,0.00019759,2]
[372885253,1752792655541,-883.0,0.00019759,2]
[372885254,1752792655551,-460.0,0.00019759,2]
[372885255,1752792655560,-2574.35,0.00019759,2]
[372885256,1752792655569,-460.0,0.00019759,2]
[372885257,1752792655579,-460.0,0.00019759,2]
[372885258,1752792655589,-1471.77,0.00019759,2]
[372885259,1752792655598,-460.0,0.00019783,2]
[372885260,1752792655607,-460.0,0.00019783,2]
[372885261,1752792655617,-460.0,0.00019783,2]
[372885262,1752792655627,-460.0,0.00019783,2]
[372885263,1752792655637,-558.89,0.00019783,2]
[372885264,1752792655647,-509.26,0.00019783,2]
[372885265,1752792655657,-504.22,0.00019783,2]
[372885266,1752792655667,-553.36,0.00019783,2]
[372885267,1752792655677,-460.0,0.00019783,2]
[372885268,1752792655687,-683.62,0.00019783,2]
[372885269,1752792655696,-651.31,0.00019783,2]
[372885270,1752792655706,-623.43,0.00019783,2]
[372885271,1752792655715,-1119.9,0.00019783,2]
[372885272,1752792655725,-620.89,0.00019783,2]
[372885273,1752792655734,-460.0,0.00019783,2]
[372885274,1752792655743,-790.48,0.00019783,2]
[372885275,1752792655753,-709.94,0.00019783,2]
[372885276,1752792655763,-604.38,0.00019783,2]
[372885277,1752792655774,-460.0,0.00019786,2]
[372885278,1752792655784,-240.56,0.00019786,2]
[372885279,1752792655793,-491.24,0.00019786,2]
[372885280,1752792655802,-614.19,0.00019786,2]
[372885281,1752792655812,-4940.94,0.00019786,2]
[372885282,1752792655822,-853.37,0.00019786,2]
[372885283,1752792655833,-557.14,0.00019786,2]
[372885284,1752792655843,-460.0,0.00019786,2]
[372885285,1752792655855,-460.0,0.00019786,2]
[372885286,1752792655865,-546.72,0.00019786,2]
[372885287,1752792655875,-460.0,0.00019787,2]
[372885288,1752792655884,-460.0,0.00019787,2]
[372885289,1752792655893,-467.83,0.00019787,2]
[372885290,1752792655903,-460.0,0.00019787,2]
[372885291,1752792655912,-460.0,0.00019787,2]
[372885292,1752792655922,-460.0,0.00019787,2]
[372885293,1752792655933,-577.94,0.00019787,2]
[372885294,1752792655942,-460.0,0.00019787,2]
[372885295,1752792655951,-460.0,0.00019787,2]
[372885296,1752792655961,-460.0,0.00019787,2]
[372885297,1752792655973,-1023.54,0.00019787,2]
[372885298,1752792655984,-460.0,0.00019787,2]
[372885299,1752792655994,-460.0,0.00019787,2]
[372885300,1752792656004,-196.86,0.00019787,2]
[372885301,1752792656014,-3000.0,0.00019788,2]
[372885302,1752792656025,-3000.0,0.00019824,2]
[372885303,1752792656035,-4000.0,0.00019929,2]
[372885304,1752792656044,-151.0,0.00019989,2]
[372885305,1752792656053,-151.0,0.0002,3]
[372885306,1752792656063,-2066.47584786,0.00020027,2]
[372885307,1752792656072,-460.0,0.0002003,2]
[372885308,1752792656082,-460.0,0.0002003,2]
[372885309,1752792656092,-1285.9,0.0002003,2]
[372885310,1752792656103,-3844.7,0.0002003,2]
[372885311,1752792656112,-460.0,0.00020033,2]
[372885312,1752792656122,-460.0,0.00020033,2]
[372885313,1752792656131,-2390.87,0.00020033,2]
[372885314,1752792656141,-883.0,0.00020033,2]
[372885315,1752792656150,-460.0,0.00020033,2]
[372885316,1752792656159,-2574.35,0.00020033,2]
[372885317,1752792656170,-460.0,0.00020033,2]
[372885318,1752792656181,-460.0,0.00020033,2]
[372885319,1752792656192,-1471.77,0.00020033,2]
[372885320,1752792656202,-151.0,0.00020033,2]
[372885321,1752792656212,-460.0,0.00020057,2]
[372885322,1752792656222,-460.0,0.00020057,2]
[372885323,1752792656231,-460.0,0.00020057,2]
[372885324,1752792656241,-558.89,0.00020057,2]
[372885325,1752792656251,-509.26,0.00020057,2]
[372885326,1752792656261,-504.22,0.00020057,2]
[372885327,1752792656270,-553.36,0.00020057,2]
[372885328,1752792656281,-460.0,0.00020057,2]
[372885329,1752792656290,-683.62,0.00020057,2]
[372885330,1752792656300,-651.31,0.00020057,2]
[372885331,1752792656309,-623.43,0.00020057,2]
[372885332,1752792656319,-1119.9,0.00020057,2]
[372885333,1752792656330,-620.89,0.00020057,2]
[372885334,1752792656340,-460.0,0.00020057,2]
[372885335,1752792656350,-790.48,0.00020057,2]
[372885336,1752792656360,-709.94,0.00020057,2]
[372885337,1752792656371,-604.38,0.00020057,2]
[372885338,1752792656381,-151.0,0.00020057,2]
[372885339,1752792656390,-151.0,0.0002006,2]
[372885340,1752792656399,-460.0,0.0002006,2]
[372885341,1752792656409,-491.24,0.0002006,2]
[372885342,1752792656419,-614.19,0.0002006,2]
[372885343,1752792656428,-4940.94,0.0002006,2]
[372885344,1752792656438,-853.37,0.0002006,2]
[372885345,1752792656447,-557.14,0.0002006,2]
[372885346,1752792656457,-460.0,0.0002006,2]
[372885347,1752792656468,-460.0,0.0002006,2]
[372885348,1752792656482,-546.72,0.0002006,2]
[372885349,1752792656492,-460.0,0.00020061,2]
[372885350,1752792656503,-460.0,0.00020061,2]
[372885351,1752792656512,-467.83,0.00020061,2]
[372885352,1752792656522,-460.0,0.00020061,2]
[372885353,1752792656533,-594.34890755,0.00020061,2]
[372885354,1752792656542,-577.94,0.00020061,2]
[372885355,1752792656553,-460.0,0.00020061,2]
[372885356,1752792656564,-460.0,0.00020061,2]
[372885357,1752792656573,-1023.54,0.00020061,2]
[372885358,1752792656582,-460.0,0.00020061,2]
[372885359,1752792656592,-332.056736,0.00020062,2]
[372885360,1752792656601,-332.056736,0.00020062,2]
[372885361,1752792656611,-360.0,0.00020096,2]
[372885362,1752792656620,-410.75752,0.00020187,2]
[372885363,1752792656630,-460.0,0.00020304,2]
[372885364,1752792656641,-460.0,0.00020304,2]
[372885365,1752792656650,-1285.9,0.00020304,2]
[372885366,1752792656660,-3844.7,0.00020304,2]
[372885367,1752792656670,-460.0,0.00020307,2]
[372885368,1752792656679,-448.63,0.00020307,2]
[372885369,1752792656689,-2390.87,0.00020307,2]
[372885370,1752792656780,-883.0,0.00020307,2]
[372885371,1752792656790,-460.0,0.00020307,2]
[372885372,1752792656799,-2574.35,0.00020307,2]
[372885373,1752792656809,-460.0,0.00020307,2]
[372885374,1752792656818,-460.0,0.00020307,2]
[372885375,1752792656828,-1471.77,0.00020307,2]
[372885376,1752792656840,-445.44958599,0.00020321,2]
[372885377,1752792656849,-360.14516031,0.00020331,2]
[372885378,1752792656858,-516.34,0.00020331,2]
[372885379,1752792656868,-460.0,0.00020331,2]
[372885380,1752792656878,-558.89,0.00020331,2]
[372885381,1752792656887,-509.26,0.00020331,2]
[372885382,1752792656896,-504.22,0.00020331,2]
[372885383,1752792656905,-553.36,0.00020331,2]
[372885384,1752792656915,-460.0,0.00020331,2]
[372885385,1752792656924,-683.62,0.00020331,2]
[372885386,1752792656934,-651.31,0.00020331,2]
[372885387,1752792656943,-623.43,0.00020331,2]
[372885388,1752792656952,-1119.9,0.00020331,2]
[372885389,1752792656962,-620.89,0.00020331,2]
[372885390,1752792656971,-460.0,0.00020331,2]
[372885391,1752792656980,-790.48,0.00020331,2]
[372885392,1752792656990,-709.94,0.00020331,2]
[372885393,1752792656999,-604.38,0.00020331,2]
[372885394,1752792657009,-460.0,0.00020334,2]
[372885395,1752792657019,-491.24,0.00020334,2]
[372885396,1752792657029,-614.19,0.00020334,2]
[372885397,1752792657039,-4940.94,0.00020334,2]
[372885398,1752792657049,-853.37,0.00020334,2]
[372885399,1752792657058,-557.14,0.00020334,2]
[372885400,1752792657067,-460.0,0.00020334,2]
[372885401,1752792657077,-460.0,0.00020334,2]
[372885402,1752792657086,-546.72,0.00020334,2]
[372885403,1752792657095,-460.0,0.00020335,2]
[372885404,1752792657104,-467.83,0.00020335,2]
[372885405,1752792657114,-460.0,0.00020335,2]
[372885406,1752792657124,-577.94,0.00020335,2]
[372885407,1752792657133,-460.0,0.00020335,2]
[372885408,1752792657143,-460.0,0.00020335,2]
[372885409,1752792657152,-1023.54,0.00020335,2]
[372885410,1752792657161,-460.0,0.00020335,2]
[372885411,1752792657171,-500.0,0.00020461,2]
[372885412,1752792657180,-151.0,0.000205,3]
[372885413,1752792657190,-460.0,0.00020578,2]
[372885414,1752792657199,-460.0,0.00020578,2]
[372885415,1752792657209,-1285.9,0.00020578,2]
[372885416,1752792657219,-3844.7,0.00020578,2]
[372885417,1752792657228,-460.0,0.00020581,2]
[372885418,1752792657238,-2390.87,0.00020581,2]
[372885419,1752792657247,-883.0,0.00020581,2]
[372885420,1752792657257,-460.0,0.00020581,2]
[372885421,1752792657267,-2574.35,0.00020581,2]
[372885422,1752792657279,-460.0,0.00020581,2]
[372885423,1752792657288,-460.0,0.00020581,2]
[372885424,1752792657298,-1471.77,0.00020581,2]
[372885425,1752792657308,-558.89,0.00020605,2]
[372885426,1752792657318,-509.26,0.00020605,2]
[372885427,1752792657327,-504.22,0.00020605,2]
[372885428,1752792657339,-553.36,0.00020605,2]
[372885429,1752792657349,-460.0,0.00020605,2]
[372885430,1752792657358,-683.62,0.00020605,2]
[372885431,1752792657368,-651.31,0.00020605,2]
[372885432,1752792657378,-623.43,0.00020605,2]
[372885433,1752792657388,-1119.9,0.00020605,2]
[372885434,1752792657398,-620.89,0.00020605,2]
[372885435,1752792657407,-460.0,0.00020605,2]
[372885436,1752792657417,-790.48,0.00020605,2]
[372885437,1752792657427,-709.94,0.00020605,2]
[372885438,1752792657436,-604.38,0.00020605,2]
[372885439,1752792657446,-460.0,0.00020608,2]
[372885440,1752792657456,-491.24,0.00020608,2]
[372885441,1752792657465,-614.19,0.00020608,2]
[372885442,1752792657478,-4940.94,0.00020608,2]
[372885443,1752792657487,-853.37,0.00020608,2]
[372885444,1752792657496,-557.14,0.00020608,2]
[372885445,1752792657506,-460.0,0.00020608,2]
[372885446,1752792657517,-460.0,0.00020608,2]
[372885447,1752792657528,-546.72,0.00020608,2]
[372885448,1752792657538,-460.0,0.00020609,2]
[372885449,1752792657548,-467.83,0.00020609,2]
[372885450,1752792657558,-460.0,0.00020609,2]
[372885451,1752792657568,-577.94,0.00020609,2]
[372885452,1752792657577,-460.0,0.00020609,2]
[372885453,1752792657586,-460.0,0.00020609,2]
[372885454,1752792657596,-1023.54,0.00020609,2]
[372885455,1752792657605,-460.0,0.00020609,2]
[372885456,1752792657614,-151.0,0.00020611,2]
[372885457,1752792657624,-500.0,0.00020616,2]
[372885458,1752792657633,-460.0,0.00020644,2]
[372885459,1752792657644,-741.35535534,0.00020737,2]
[372885460,1752792657653,-460.0,0.00020852,2]
[372885461,1752792657663,-460.0,0.00020852,2]
[372885462,1752792657672,-1285.9,0.00020852,2]
[372885463,1752792657681,-3844.7,0.00020852,2]
[372885464,1752792657691,-551.70645923,0.00020855,2]
[372885465,1752792657700,-1376.38036923,0.00020855,2]
[372885466,1752792657838,-1014.48963077,0.00020855,2]
[372885467,1752792657848,-883.0,0.00020855,2]
[372885468,1752792657858,-460.0,0.00020855,2]
[372885469,1752792657868,-2574.35,0.00020855,2]
[372885470,1752792657877,-460.0,0.00020855,2]
[372885471,1752792657887,-460.0,0.00020855,2]
[372885472,1752792657897,-1471.77,0.00020855,2]
[372885473,1752792657907,-151.0,0.00020879,2]
[372885474,1752792657916,-558.89,0.00020879,2]
[372885475,1752792657925,-165.239314,0.00020879,2]
[372885476,1752792657934,-509.26,0.00020879,2]
[372885477,1752792657944,-504.22,0.00020879,2]
[372885478,1752792657953,-151.0,0.00020879,2]
[372885479,1752792657962,-211.60281051,0.00020879,2]
[372885480,1752792657973,-341.75718949,0.00020879,2]
[372885481,1752792657982,-460.0,0.00020879,2]
[372885482,1752792657993,-683.62,0.00020879,2]
[372885483,1752792658003,-651.31,0.00020879,2]
[372885484,1752792658012,-623.43,0.00020879,2]
[372885485,1752792658021,-1119.9,0.00020879,2]
[372885486,1752792658033,-620.89,0.00020879,2]
[372885487,1752792658043,-460.0,0.00020879,2]
[372885488,1752792658052,-790.48,0.00020879,2]
[372885489,1752792658061,-709.94,0.00020879,2]
[372885490,1752792658070,-151.0,0.00020879,2]
[372885491,1752792658080,-604.38,0.00020879,2]
[372885492,1752792658089,-460.0,0.00020882,2]
[372885493,1752792658099,-491.24,0.00020882,2]
[372885494,1752792658108,-614.19,0.00020882,2]
[372885495,1752792658117,-4940.94,0.00020882,2]
[372885496,1752792658127,-853.37,0.00020882,2]
[372885497,1752792658138,-557.14,0.00020882,2]
[372885498,1752792658148,-460.0,0.00020882,2]
[372885499,1752792658158,-460.0,0.00020882,2]
[372885500,1752792658168,-546.72,0.00020882,2]
[372885501,1752792658178,-460.0,0.00020883,2]
[372885502,1752792658189,-467.83,0.00020883,2]
[372885503,1752792658294,-551.58,0.00020883,2]
[372885504,1752792658304,-577.94,0.00020883,2]
[372885505,1752792658313,-460.0,0.00020883,2]
[372885506,1752792658323,-460.0,0.00020883,2]
[372885507,1752792658332,-1023.54,0.00020883,2]
[372885508,1752792658342,-460.0,0.00020883,2]
[372885509,1752792658352,-151.0,0.00021,3]
[372885510,1752792658361,-864.053,0.00021037,2]
[372885511,1752792658370,-178.57,0.00021037,2]
[372885512,1752792658379,-2066.47584786,0.00021053,2]
[372885513,1752792658389,-460.0,0.00021126,2]
[372885514,1752792658399,-460.0,0.00021126,2]
[372885515,1752792658409,-1285.9,0.00021126,2]
[372885516,1752792658418,-3844.7,0.00021126,2]
[372885517,1752792658428,-2390.87,0.00021129,2]
[372885518,1752792658437,-883.0,0.00021129,2]
[372885519,1752792658447,-460.0,0.00021129,2]
[372885520,1752792658457,-2574.35,0.00021129,2]
[372885521,1752792658468,-460.0,0.00021129,2]
[372885522,1752792658478,-460.0,0.00021129,2]
[372885523,1752792658488,-1471.77,0.00021129,2]